fUST/lending_fUST_20240919
["ID","MTS","AMOUNT","RATE_DAILY","PERIOD"]
[338480907,1726689044833,-539.63,0.00019178,2]
[338480908,1726689044843,-730.98,0.00019178,2]
[338480909,1726689044853,-500.0,0.00019178,2]
[338480910,1726689044863,-500.0,0.00019178,2]
[338480911,1726689044873,-500.0,0.00019178,2]
[338480912,1726689044883,-587.95,0.00019178,2]
[338480913,1726689044892,-500.0,0.00019178,2]
[338480914,1726689044902,-500.0,0.00019178,2]
[338480915,1726689044912,-556.35,0.00019178,2]
[338480916,1726689044921,-2528.5,0.00019178,2]
[338480917,1726689044931,-1173.23,0.00019178,2]
[338480918,1726689044940,-500.0,0.00019178,2]
[338480919,1726689044950,-500.0,0.00019178,2]
[338480920,1726689044961,-500.0,0.00019178,2]
[338480921,1726689044979,-500.0,0.00019178,2]
[338480922,1726689044988,-1607.8,0.00019178,2]
[338480923,1726689044999,-1224.53,0.00019178,2]
[338480924,1726689045009,-500.0,0.00019178,2]
[338480925,1726689045018,-992.96,0.00019178,2]
[338480926,1726689045028,-1512.6,0.00019178,2]
[338480927,1726689045038,-500.0,0.00019178,2]
[338480928,1726689045047,-500.0,0.00019178,2]
[338480929,1726689045057,-500.0,0.00019178,2]
[338480930,1726689045066,-500.0,0.00019178,2]
[338480931,1726689045076,-500.0,0.00019178,2]
[338480932,1726689045086,-500.0,0.00019178,2]
[338480933,1726689045095,-500.0,0.00019178,2]
[338480934,1726689045105,-2243.02,0.00019178,2]
[338480935,1726689045114,-500.0,0.00019178,2]
[338480936,1726689045125,-532.99,0.00019178,2]
[338480937,1726689045136,-500.0,0.00019178,2]
[338480938,1726689045147,-2802.19,0.00019178,2]
[338480939,1726689045158,-500.0,0.00019178,2]
[338480940,1726689045168,-500.0,0.00019178,2]
[338480941,1726689045177,-500.0,0.00019178,2]
[338480942,1726689045187,-296.28077995,0.00019178,2]
[338480943,1726689045196,-1968.88,0.00019178,2]
[338480944,1726689045206,-500.0,0.00019178,2]
[338480945,1726689045222,-1089.42,0.00019178,2]
[338480946,1726689045234,-2272.34,0.00019178,2]
[338480947,1726689045244,-500.0,0.00019178,2]
[338480948,1726689045254,-500.0,0.00019178,2]
[338480949,1726689045263,-500.0,0.00019178,2]
[338480950,1726689045273,-500.0,0.00019178,2]
[338480951,1726689045283,-1447.86,0.00019178,2]
[338480952,1726689045293,-2068.72,0.00019178,2]
[338480953,1726689045302,-978.5,0.00019178,2]
[338480954,1726689045312,-79453.35,0.00019178,2]
[338480955,1726689045322,-500.0,0.00019178,2]
[338480956,1726689045332,-1638.8,0.00019178,2]
[338480957,1726689045342,-500.0,0.00019178,2]
[338480958,1726689045352,-500.0,0.00019178,2]
[338480959,1726689045362,-500.0,0.00019178,2]
[338480960,1726689045371,-500.0,0.00019178,2]
[338480961,1726689045385,-500.0,0.00019178,2]
[338480962,1726689045395,-500.0,0.00019178,2]
[338480963,1726689045405,-500.0,0.00019178,2]
[338480964,1726689045416,-602.68751227,0.00019178,2]
[338480965,1726689045428,-542.20792602,0.00019178,2]
[338480966,1726689045438,-1181.16,0.00019178,2]
[338480967,1726689045448,-500.0,0.00019178,2]
[338480968,1726689045460,-500.0,0.00019178,2]
[338480969,1726689045476,-535.59,0.00019178,2]
[338480970,1726689045486,-1681.86,0.00019178,2]
[338480971,1726689045497,-457.48908483,0.00019178,2]
[338480972,1726689045510,-490.99017484,0.00019178,2]
[338480973,1726689045522,-500.0,0.00019178,2]
[338480974,1726689045534,-500.0,0.00019178,2]
[338480975,1726689045545,-578.9,0.00019178,2]
[338480976,1726689045558,-1228.71,0.00019178,2]
[338480977,1726689045569,-500.0,0.00019178,2]
[338480978,1726689045579,-500.0,0.00019178,2]
[338480979,1726689045592,-1469.71,0.00019178,2]
[338480980,1726689045603,-500.0,0.00019178,2]
[338480981,1726689045615,-1096.32,0.00019178,2]
[338480982,1726689045627,-9503.23,0.00019178,2]
[338480983,1726689045637,-1096.08,0.00019178,2]
[338480984,1726689045648,-500.0,0.00019178,2]
[338480985,1726689045659,-1118.23,0.00019178,2]
[338480986,1726689045669,-500.0,0.00019178,2]
[338480987,1726689045678,-204.01671359,0.00019178,2]
[338480988,1726689045688,-756.43,0.00019178,2]
[338480989,1726689045698,-401.91629443,0.00019178,2]
[338480990,1726689045709,-506.22,0.00019178,2]
[338480991,1726689045721,-500.0,0.00019178,2]
[338480992,1726689045731,-500.0,0.00019178,2]
[338480993,1726689045740,-513.0,0.00019178,2]
[338480994,1726689045750,-500.0,0.00019178,2]
[338480995,1726689045761,-500.0,0.00019178,2]
[338480996,1726689045771,-500.0,0.00019178,2]
[338480997,1726689045782,-500.0,0.00019178,2]
[338480998,1726689045792,-1287.5,0.00019178,2]
[338480999,1726689045802,-500.0,0.00019178,2]
[338481000,1726689045812,-500.0,0.00019178,2]
[338481001,1726689045822,-5342.94,0.00019178,2]
[338481002,1726689045832,-500.0,0.00019178,2]
[338481003,1726689045843,-820.35,0.00019178,2]
[338481004,1726689045854,-500.0,0.00019178,2]
[338481005,1726689045864,-1269.18,0.00019178,2]
[338481006,1726689045874,-500.0,0.00019178,2]
[338481007,1726689045884,-5297.59,0.00019178,2]
[338481008,1726689045894,-500.0,0.00019178,2]
[338481009,1726689045905,-837.27,0.00019178,2]
[338481010,1726689045916,-500.0,0.00019178,2]
[338481011,1726689045927,-825.67,0.00019178,2]
[338481012,1726689045938,-1241.15,0.00019178,2]
[338481013,1726689045949,-705.71,0.00019178,2]
[338481014,1726689045960,-500.0,0.00019178,2]
[338481015,1726689045975,-521.55,0.00019178,2]
[338481016,1726689045987,-500.0,0.00019178,2]
[338481017,1726689045998,-502.29,0.00019178,2]
[338481018,1726689046016,-622.41256903,0.00019178,2]
[338481019,1726689046028,-500.0,0.00019178,2]
[338481020,1726689046039,-500.0,0.00019178,2]
[338481021,1726689046051,-500.0,0.00019178,2]
[338481022,1726689046062,-500.0,0.00019178,2]
[338481023,1726689046073,-500.0,0.00019178,2]
[338481024,1726689046084,-500.0,0.00019178,2]
[338481025,1726689046094,-214.18,0.00019178,2]
[338481026,1726689046108,-679.71,0.00019178,2]
[338481027,1726689046118,-500.0,0.00019178,2]
[338481028,1726689046128,-500.0,0.00019178,2]
[338481030,1726689046140,-500.0,0.00019178,2]
[338481032,1726689046150,-500.0,0.00019178,2]
[338481033,1726689046160,-570.85,0.00019178,2]
[338481034,1726689046170,-500.0,0.00019178,2]
[338481035,1726689046179,-500.0,0.00019178,2]
[338481036,1726689046190,-1246.91,0.00019178,2]
[338481037,1726689046200,-211.12534964,0.00019178,2]
[338481038,1726689046210,-545.75,0.00019178,2]
[338481039,1726689046232,-923.56,0.00019178,2]
[338481040,1726689046244,-500.0,0.00019178,2]
[338481041,1726689046255,-500.0,0.00019178,2]
[338481042,1726689046265,-500.0,0.00019178,2]
[338481043,1726689046275,-500.0,0.00019178,2]
[338481044,1726689046285,-500.0,0.00019178,2]
[338481045,1726689046295,-500.0,0.00019178,2]
[338481046,1726689046306,-500.0,0.00019178,2]
[338481047,1726689046316,-899.79,0.00019178,2]
[338481048,1726689046326,-500.0,0.00019178,2]
[338481049,1726689046337,-500.0,0.00019178,2]
[338481050,1726689046347,-500.0,0.00019178,2]
[338481051,1726689046357,-400.84237747,0.00019178,2]
[338481052,1726689046368,-500.0,0.00019178,2]
[338481053,1726689046384,-500.0,0.00019178,2]
[338481054,1726689046394,-500.0,0.00019178,2]
[338481055,1726689046404,-794.47,0.00019178,2]
[338481056,1726689046415,-1071.05,0.00019178,2]
[338481057,1726689046426,-500.0,0.00019178,2]
[338481058,1726689046437,-500.0,0.00019178,2]
[338481059,1726689046447,-500.0,0.00019178,2]
[338481060,1726689046458,-3353.74,0.00019178,2]
[338481061,1726689046478,-905.8,0.00019178,2]
[338481062,1726689046487,-500.0,0.00019178,2]
[338481063,1726689046498,-500.0,0.00019178,2]
[338481064,1726689046510,-500.0,0.00019178,2]
[338481065,1726689046520,-1075.88,0.00019178,2]
[338481066,1726689046530,-1409.92,0.00019178,2]
[338481067,1726689046541,-500.0,0.00019178,2]
[338481068,1726689046551,-1328.88,0.00019178,2]
[338481069,1726689046561,-1569.69,0.00019178,2]
[338481070,1726689046571,-500.0,0.00019178,2]
[338481071,1726689046581,-747.91,0.00019178,2]
[338481072,1726689046592,-500.0,0.00019178,2]
[338481073,1726689046602,-500.0,0.00019178,2]
[338481074,1726689046612,-500.0,0.00019178,2]
[338481075,1726689046624,-500.0,0.00019178,2]
[338481076,1726689046635,-1000.0,0.00019178,2]
[338481077,1726689046645,-500.0,0.00019178,2]
[338481078,1726689046655,-532.18461076,0.00019178,2]
[338481079,1726689046664,-657.35,0.00019178,2]
[338481080,1726689046675,-742.01,0.00019178,2]
[338481081,1726689046684,-500.0,0.00019178,2]
[338481082,1726689046694,-1145.76,0.00019178,2]
[338481084,1726689046705,-1283.73,0.00019178,2]
[338481085,1726689046720,-594.43,0.00019178,2]
[338481086,1726689046730,-500.0,0.00019178,2]
[338481087,1726689046742,-1369.71,0.00019178,2]
[338481089,1726689046752,-500.0,0.00019178,2]
[338481090,1726689046762,-747.43,0.00019178,2]
[338481091,1726689046772,-895.66,0.00019178,2]
[338481092,1726689046782,-500.0,0.00019178,2]
[338481093,1726689046792,-2308.95,0.00019178,2]
[338481094,1726689046802,-500.0,0.00019178,2]
[338481095,1726689046812,-531.3,0.00019178,2]
[338481096,1726689046823,-500.0,0.00019178,2]
[338481097,1726689046833,-1268.85,0.00019178,2]
[338481098,1726689046842,-500.0,0.00019178,2]
[338481099,1726689046852,-500.0,0.00019178,2]
[338481100,1726689046862,-500.0,0.00019178,2]
[338481101,1726689046872,-500.0,0.00019178,2]
[338481102,1726689046881,-1733.56,0.00019178,2]
[338481103,1726689046891,-500.0,0.00019178,2]
[338481104,1726689046901,-500.0,0.00019178,2]
[338481105,1726689046911,-6373.96,0.00019178,2]
[338481106,1726689046921,-942.82,0.00019178,2]
[338481107,1726689046931,-500.0,0.00019178,2]
[338481108,1726689046942,-770.16,0.00019178,2]
[338481109,1726689046955,-500.0,0.00019178,2]
[338481110,1726689046968,-500.0,0.00019178,2]
[338481111,1726689046978,-1876.39,0.00019178,2]
[338481112,1726689046987,-500.0,0.00019178,2]
[338481113,1726689046997,-500.0,0.00019178,2]
[338481114,1726689047007,-1291.07,0.00019178,2]
[338481115,1726689047017,-500.0,0.00019178,2]
[338481116,1726689047027,-775.76,0.00019178,2]
[338481117,1726689047037,-500.0,0.00019178,2]
[338481118,1726689047048,-500.0,0.00019178,2]
[338481119,1726689047059,-1154.27,0.00019178,2]
[338481120,1726689047070,-500.0,0.00019178,2]
[338481121,1726689047080,-589.65,0.00019178,2]
[338481122,1726689047090,-500.0,0.00019178,2]
[338481123,1726689047101,-500.0,0.00019178,2]
[338481124,1726689047110,-500.0,0.00019178,2]
[338481125,1726689047120,-500.0,0.00019178,2]
[338481126,1726689047130,-500.0,0.00019178,2]
[338481127,1726689047140,-500.0,0.00019178,2]
[338481128,1726689047149,-500.0,0.00019178,2]
[338481129,1726689047159,-1149.75,0.00019178,2]
[338481130,1726689047170,-500.0,0.00019178,2]
[338481131,1726689047180,-1360.51,0.00019178,2]
[338481132,1726689047190,-500.0,0.00019178,2]
[338481133,1726689047201,-500.0,0.00019178,2]
[338481134,1726689047210,-500.0,0.00019178,2]
[338481135,1726689047227,-500.0,0.00019178,2]
[338481136,1726689047238,-889.59,0.00019178,2]
[338481137,1726689047247,-500.0,0.00019178,2]
[338481138,1726689047258,-649.43499826,0.00019178,2]
[338481139,1726689047268,-500.0,0.00019178,2]
[338481140,1726689047278,-500.0,0.00019178,2]
[338481141,1726689047288,-500.0,0.00019178,2]
[338481142,1726689047298,-4885.62,0.00019178,2]
[338481143,1726689047307,-500.0,0.00019178,2]
[338481144,1726689047317,-550.43,0.00019178,2]
[338481145,1726689047326,-500.0,0.00019178,2]
[338481146,1726689047337,-1330.72,0.00019178,2]
[338481147,1726689047347,-500.0,0.00019178,2]
[338481148,1726689047358,-500.0,0.00019178,2]
[338481149,1726689047368,-500.0,0.00019178,2]
[338481150,1726689047378,-500.0,0.00019178,2]
[338481151,1726689047388,-974.54,0.00019178,2]
[338481152,1726689047398,-1745.91,0.00019178,2]
[338481153,1726689047408,-500.0,0.00019178,2]
[338481154,1726689047419,-500.0,0.00019178,2]
[338481155,1726689047429,-500.0,0.00019178,2]
[338481156,1726689047438,-1188.75,0.00019178,2]
[338481157,1726689047448,-843.67,0.00019178,2]
[338481158,1726689047458,-689.73,0.00019178,2]
[338481159,1726689047471,-1186.88,0.00019178,2]
[338481160,1726689047481,-500.0,0.00019178,2]
[338481161,1726689047491,-2112.5,0.00019178,2]
[338481162,1726689047501,-3061.85,0.00019178,2]
[338481163,1726689047513,-533.85,0.00019178,2]
[338481164,1726689047524,-1525.03447703,0.00019178,2]
[338481167,1726689048145,-271.03552297,0.00019178,2]
[338481168,1726689048155,-500.0,0.00019178,2]
[338481169,1726689048165,-565.2,0.00019178,2]
[338481170,1726689048175,-947.0,0.00019178,2]
[338481171,1726689048185,-500.0,0.00019178,2]
[338481172,1726689048195,-500.0,0.00019178,2]
[338481173,1726689048205,-500.0,0.00019178,2]
[338481174,1726689048214,-1306.0,0.00019178,2]
[338481175,1726689048227,-500.0,0.00019178,2]
[338481176,1726689048237,-500.0,0.00019178,2]
[338481177,1726689048247,-500.0,0.00019178,2]
[338481178,1726689048257,-500.0,0.00019178,2]
[338481179,1726689048266,-500.0,0.00019178,2]
[338481180,1726689048277,-500.0,0.00019178,2]
[338481181,1726689048287,-549.32,0.00019178,2]
[338481182,1726689048297,-15597.37,0.00019178,2]
[338481183,1726689048307,-500.0,0.00019178,2]
[338481184,1726689048317,-918.95,0.00019178,2]
[338481185,1726689048327,-500.0,0.00019178,2]
[338481186,1726689048337,-500.0,0.00019178,2]
[338481187,1726689048348,-1973.9,0.00019178,2]
[338481188,1726689048357,-500.0,0.00019178,2]
[338481189,1726689048368,-502.85651875,0.00019178,2]
[338481190,1726689048378,-1024.33,0.00019178,2]
[338481191,1726689048388,-500.0,0.00019178,2]
[338481192,1726689048399,-500.0,0.00019178,2]
[338481193,1726689048409,-172.562554,0.00019178,2]
[338481194,1726689048420,-21175.173188,0.00019178,2]
[338481195,1726689048430,-175.762672,0.00019178,2]
[338481196,1726689048442,-5222.34,0.000192,2]
[338481197,1726689048452,-25798.49078398,0.000192,2]
[338481198,1726689048465,-505.27440824,0.000192,2]
[338481199,1726689048482,-642.29571818,0.000192,2]
[338481200,1726689048862,-1106.5,0.00019178,2]
[338481201,1726689048872,-19529.4990896,0.000192,2]
[338481202,1726689048882,-150.112233,0.000192,2]
[338481203,1726689048893,-150.112233,0.000192,2]
[338481204,1726689048904,-150.112233,0.000192,2]
[338481205,1726689048914,-131222.33,0.000192,2]
[338481206,1726689048923,-1577.63,0.000192,2]
[338481207,1726689048934,-150.112233,0.000192,2]
[338481208,1726689048944,-150.112233,0.000192,2]
[338481209,1726689048954,-150.112233,0.000192,2]
[338481210,1726689048964,-150.112233,0.000192,2]
[338481211,1726689048980,-178.9255,0.000192,2]
[338481212,1726689048991,-178.9255,0.000192,2]
[338481213,1726689049001,-151.0,0.000192,2]
[338481214,1726689049010,-755.398459,0.000192,2]
[338481215,1726689049020,-755.398459,0.000192,2]
[338481216,1726689049029,-151.0,0.000192,2]
[338481217,1726689049039,-151.0,0.000192,2]
[338481218,1726689049048,-500.0,0.00019215,2]
[338481219,1726689049059,-150.0,0.00019219,2]
[338481220,1726689049068,-524.0,0.00019219,2]
[338481221,1726689049078,-1216.0,0.00019219,2]
[338481222,1726689049088,-150.069,0.00019219,2]
[338481223,1726689049097,-242.151,0.00019219,2]
[338481224,1726689049107,-3951.75794493,0.0001927,2]
[338481225,1726689049117,-150.112233,0.000193,2]
[338481226,1726689049128,-150.112233,0.000193,2]
[338481227,1726689049138,-150.112233,0.000193,2]
[338481228,1726689049147,-150.112233,0.000193,2]
[338481229,1726689049158,-306.4933528,0.00019369,2]
[338481230,1726689049167,-153.0,0.00019369,2]
[338481231,1726689049177,-153.0,0.00019369,2]
[338481232,1726689049187,-306.0,0.00019369,2]
[338481233,1726689049197,-153.0,0.00019369,2]
[338481234,1726689049208,-150.112233,0.000194,2]
[338481235,1726689049223,-150.112233,0.000194,2]
[338481236,1726689049233,-150.112233,0.000194,2]
[338481237,1726689049242,-500.0,0.00019452,2]
[338481238,1726689049252,-318.05901082,0.00019452,2]
[338481239,1726689049261,-500.0,0.00019452,2]
[338481240,1726689049272,-159.65891654,0.00019452,2]
[338481241,1726689049282,-500.0,0.00019452,2]
[338481242,1726689049292,-500.0,0.00019452,2]
[338481243,1726689049302,-1222.23,0.00019452,2]
[338481244,1726689049311,-500.0,0.00019452,2]
[338481245,1726689049320,-500.0,0.00019452,2]
[338481246,1726689049330,-500.0,0.00019452,2]
[338481247,1726689049340,-500.0,0.00019452,2]
[338481248,1726689049350,-540.20386747,0.00019452,2]
[338481249,1726689049360,-500.0,0.00019452,2]
[338481250,1726689049371,-639.55,0.00019452,2]
[338481251,1726689049381,-500.0,0.00019452,2]
[338481252,1726689049391,-500.0,0.00019452,2]
[338481253,1726689049400,-500.0,0.00019452,2]
[338481254,1726689049410,-500.0,0.00019452,2]
[338481255,1726689049419,-151.0,0.00019452,2]
[338481256,1726689049429,-500.0,0.00019452,2]
[338481257,1726689049439,-336.01106897,0.00019452,2]
[338481258,1726689049448,-500.0,0.00019452,2]
[338481259,1726689049458,-500.0,0.00019452,2]
[338481260,1726689049472,-500.0,0.00019452,2]
[338481261,1726689049481,-591.79,0.00019452,2]
[338481262,1726689049491,-500.0,0.00019452,2]
[338481263,1726689049502,-151.0,0.00019452,2]
[338481264,1726689049515,-654.48,0.00019452,2]
[338481265,1726689049528,-2262.35,0.00019452,2]
[338481266,1726689049539,-577.87,0.00019452,2]
[338481267,1726689049548,-500.0,0.00019452,2]
[338481268,1726689049559,-151.0,0.00019452,2]
[338481269,1726689049568,-500.0,0.00019452,2]
[338481270,1726689049577,-500.0,0.00019452,2]
[338481271,1726689049588,-492.15406028,0.00019452,2]
[338481272,1726689049597,-1576.72,0.00019452,2]
[338481273,1726689049606,-232.15,0.00019452,2]
[338481274,1726689049615,-1425.0,0.00019452,2]
[338481275,1726689049625,-500.0,0.00019452,2]
[338481276,1726689049635,-500.0,0.00019452,2]
[338481277,1726689049644,-528.48,0.00019452,2]
[338481278,1726689049654,-723.2,0.00019452,2]
[338481279,1726689049663,-738.53,0.00019452,2]
[338481280,1726689049673,-2139.29,0.00019452,2]
[338481281,1726689049682,-500.0,0.00019452,2]
[338481282,1726689049692,-500.0,0.00019452,2]
[338481283,1726689049702,-500.0,0.00019452,2]
[338481284,1726689049712,-673.49,0.00019452,2]
[338481285,1726689049725,-2125.27,0.00019452,2]
[338481286,1726689049735,-500.0,0.00019452,2]
[338481287,1726689049744,-710.81,0.00019452,2]
[338481288,1726689049755,-877.96,0.00019452,2]
[338481289,1726689049764,-500.0,0.00019452,2]
[338481290,1726689049773,-500.0,0.00019452,2]
[338481291,1726689049782,-500.0,0.00019452,2]
[338481292,1726689049792,-560.0,0.00019452,2]
[338481293,1726689049802,-1529.54,0.00019452,2]
[338481294,1726689049811,-500.0,0.00019452,2]
[338481295,1726689049820,-582.93,0.00019452,2]
[338481296,1726689049830,-500.0,0.00019452,2]
[338481297,1726689049840,-500.0,0.00019452,2]
[338481298,1726689049850,-500.0,0.00019452,2]
[338481299,1726689049860,-500.0,0.00019452,2]
[338481300,1726689049870,-580.03,0.00019452,2]
[338481301,1726689049880,-787.31,0.00019452,2]
[338481302,1726689049889,-725.58,0.00019452,2]
[338481303,1726689049899,-500.0,0.00019452,2]
[338481304,1726689049909,-500.0,0.00019452,2]
[338481305,1726689049918,-500.0,0.00019452,2]
[338481306,1726689049927,-500.0,0.00019452,2]
[338481307,1726689049936,-500.0,0.00019452,2]
[338481308,1726689049946,-500.0,0.00019452,2]
[338481309,1726689049955,-500.0,0.00019452,2]
[338481310,1726689049965,-500.0,0.00019452,2]
[338481311,1726689049978,-500.0,0.00019452,2]
[338481312,1726689049988,-897.06,0.00019452,2]
[338481313,1726689049997,-500.0,0.00019452,2]
[338481314,1726689050008,-500.0,0.00019452,2]
[338481315,1726689050019,-500.0,0.00019452,2]
[338481316,1726689050028,-1019.66,0.00019452,2]
[338481317,1726689050038,-500.0,0.00019452,2]
[338481318,1726689050048,-677.37,0.00019452,2]
[338481319,1726689050058,-968.83,0.00019452,2]
[338481320,1726689050067,-587.84,0.00019452,2]
[338481321,1726689050076,-500.0,0.00019452,2]
[338481322,1726689050086,-398.66362171,0.00019452,2]
[338481323,1726689051431,-339.71266514,0.00019178,2]
[338481343,1726690159167,-300.0,0.00017009,2]
[338481344,1726690159194,-300.0,0.00017009,2]
[338481345,1726690159216,-24146.43441893,0.0001701,2]
[338481346,1726690161147,-253.56558107,0.0001701,2]
[338481394,1726690231791,-382.91512159,0.00017314,2]
[338481395,1726690231849,-283.43650347,0.00017314,2]
[338481396,1726690231861,-65.17712484,0.00017314,2]
[338481397,1726690231870,-171.575709,0.00017318,2]
[338481398,1726690231880,-192.85443142,0.00017414,2]
[338481400,1726690231890,-164.113666,0.00017447,2]
[338481402,1726690231901,-171.575709,0.00017619,2]
[338481403,1726690231914,-360.242028,0.00017808,2]
[338481404,1726690231930,-171.575709,0.0001792,2]
[338481405,1726690231941,-171.575709,0.00018221,2]
[338481406,1726690231951,-417.1339076,0.00018647,2]
[338481407,1726690231963,-415.9296361,0.00018647,2]
[338481408,1726690231973,-500.0,0.00018715,2]
[338481409,1726690231983,-3943.07934258,0.0001881,2]
[338481410,1726690231996,-300.0,0.00018899,2]
[338481411,1726690232006,-300.0,0.00018899,2]
[338481412,1726690232015,-353.428,0.000189,2]
[338481413,1726690232025,-198.038,0.000189,2]
[338481414,1726690232034,-3000.0,0.000189,2]
[338481415,1726690232044,-3000.0,0.0001891,2]
[338481416,1726690232053,-1319.42628727,0.0001892,2]
[338481430,1726690237815,-1680.57371273,0.0001892,2]
[338481431,1726690237825,-3000.0,0.0001893,2]
[338481432,1726690237835,-3000.0,0.0001894,2]
[338481433,1726690237845,-3000.0,0.0001895,2]
[338481434,1726690237855,-6322.79847141,0.00018959,2]
[338481435,1726690237864,-3000.0,0.0001896,2]
[338481436,1726690237874,-3000.0,0.0001897,2]
[338481437,1726690237884,-3000.0,0.0001898,2]
[338481438,1726690237893,-3000.0,0.0001899,2]
[338481439,1726690237903,-3000.0,0.00019,2]
[338481440,1726690237913,-3000.0,0.0001901,2]
[338481441,1726690237925,-3000.0,0.0001902,2]
[338481442,1726690237935,-3000.0,0.0001903,2]
[338481444,1726690237944,-3000.0,0.0001904,2]
[338481446,1726690237955,-1000.0,0.00019048,2]
[338481448,1726690237966,-5974.271096,0.0001905,2]
[338481450,1726690237975,-1263.34756962,0.00019058,2]
[338481452,1726690237984,-500.0,0.00019134,2]
[338481454,1726690237995,-500.0,0.00019134,2]
[338481455,1726690238005,-500.0,0.00019134,2]
[338481456,1726690238014,-500.0,0.00019134,2]
[338481457,1726690238024,-475.25984243,0.00019134,2]
[338481458,1726690238033,-500.0,0.00019134,2]
[338481459,1726690238043,-500.0,0.00019134,2]
[338481460,1726690238269,-500.0,0.00019134,2]
[338481461,1726690238280,-500.0,0.00019134,2]
[338481462,1726690238289,-500.0,0.00019134,2]
[338481463,1726690238299,-500.0,0.00019134,2]
[338481464,1726690238309,-500.0,0.00019134,2]
[338481465,1726690238319,-500.0,0.00019134,2]
[338481466,1726690238330,-500.0,0.00019134,2]
[338481467,1726690238339,-500.0,0.00019134,2]
[338481468,1726690238349,-500.0,0.00019134,2]
[338481469,1726690238358,-500.0,0.00019134,2]
[338481470,1726690238367,-500.0,0.00019134,2]
[338481471,1726690238377,-500.0,0.00019134,2]
[338481472,1726690238386,-500.0,0.00019134,2]
[338481473,1726690238395,-500.0,0.00019134,2]
[338481474,1726690238404,-500.0,0.00019134,2]
[338481475,1726690238414,-500.0,0.00019134,2]
[338481476,1726690238423,-30775.7105982,0.00019135,3]
[338481477,1726690238432,-53700.1836085,0.00019135,3]
[338481478,1726690238441,-61551.4211965,0.00019138,3]
[338481479,1726690238450,-107400.367217,0.00019138,3]
[338481480,1726690238459,-500.0,0.00019146,2]
[338481481,1726690238469,-383.70633736,0.00019146,2]
[338481482,1726690238478,-500.0,0.00019146,2]
[338481483,1726690238487,-251.75959282,0.00019146,2]
[338481484,1726690238497,-396.18391819,0.00019146,2]
[338481485,1726690238506,-500.0,0.00019146,2]
[338481486,1726690238516,-173.62496879,0.00019146,2]
[338481487,1726690238526,-500.0,0.00019146,2]
[338481488,1726690238535,-500.0,0.00019146,2]
[338481489,1726690238545,-500.0,0.00019146,2]
[338481490,1726690238557,-500.0,0.00019146,2]
[338481491,1726690238567,-500.0,0.00019146,2]
[338481492,1726690238576,-500.0,0.00019146,2]
[338481493,1726690238586,-500.0,0.00019146,2]
[338481494,1726690238596,-388.05080391,0.00019146,2]
[338481495,1726690238605,-500.0,0.00019146,2]
[338481496,1726690238614,-500.0,0.00019146,2]
[338481497,1726690238624,-600.0,0.00019146,2]
[338481498,1726690238633,-500.0,0.00019146,2]
[338481499,1726690238643,-500.0,0.00019146,2]